[Event "Svetozar Gligoric Masters 2022"]
[Site "Belgrade"]
[Date "2022.07.19"]
[Round "4.17"]
[White "Petrovic, Aleksa"]
[Black "Damjanovic, Vuk"]
[Result "1-0"]
[ECO "A53"]
[WhiteElo "2230"]
[BlackElo "2393"]
[Annotator "TA"]
[PlyCount "119"]
[EventDate "2022.07.18"]
[EventCountry "SRB"]
[SourceTitle "playchess.com"]
[Source "ChessBase"]
[SourceQuality "1"]
[TimeControl "40/5400+30:900+30"]

{[%evp 11,119,0,8,-32,-18,-51,-39,-47,-54,-42,0,0,0,0,0,0,0,0,18,18,18,18,22,21,22,20,25,19,19,26,22,24,16,27,15,17,12,0,0,0,205,208,208,197,198,198,195,195,191,185,194,121,110,71,107,40,421,430,376,402,356,296,812,786,5210,5081,29977,5631,4943,1622,1615,1615,1615,1391,1706,1530,1485,1270,1227,592,883,592,592,592,1396,1253,1407,1253,4608,4608,4589,4589,4608,4597,4582,4582,29978,29948,5940,5933,29986,29987,29989,29990,29990,29989,29991,29992,29992,29993]} 1. d4 Nf6 2. c4 d6 3. Nc3 e5 4. dxe5 dxe5 5. Qxd8+ Kxd8 6. Nf3 Nc6 7. Ng5 {A53: Old Indian Defence without Nf3.} Ke8 8. Nb5 Bb4+ 9. Bd2 {Black is slightly better.} Bxd2+ 10. Kxd2 {[#]} h6 $146 {...Ke7 is the strong threat.} ({Predecessor:} 10... Ke7 11. Nxc7 Rd8+ 12. Ke1 Rb8 13. Rd1 Nd4 14. Rd2 Bf5 15. e3 Nc2+ 16. Ke2 Nb4 {0-1 (34) Berkley,S (1668)-Cehajic,M (1946) IECC email 2002}) 11. Nxc7+ Kd8 12. Nxf7+ Kxc7 13. Nxh8 {Hoping for f3.} Bf5 $1 14. Nf7 {Against Rd8+} Rf8 {[#]} 15. Nxe5 $1 Nxe5 16. Ke1 Nc6 {[%cal Be5c6,Bc6b4,Bb4c2][%mdl 32]} 17. f3 Nb4 {White must now prevent ...Nc2+.} 18. e4 Bxe4 19. fxe4 Nc2+ 20. Kd2 Nxa1 21. Bd3 Ng4 {[%cal Of8d8]} 22. Rxa1 $11 {[%mdl 4096] Endgame KRB-KRN} Rf2+ $1 23. Kc3 {And now Rf1 would win.} Rxg2 24. Rf1 {Threatens to win with Rf7+.} Ne5 {Prevents Rf7+.} 25. Rf5 Kd6 (25... Nxd3 $11 {and Black has nothing to worry.} 26. Rf7+ Kc6 27. Kxd3 Rxb2) 26. c5+ $1 $18 Ke6 27. Bc2 {aiming for Bb3+.} Nd7 28. b4 $1 {Strongly threatening Bb3+.} Ke7 29. Bb3 Nf6 30. Bd5 b6 31. Bb7 (31. Re5+ $18 Kd8 32. cxb6 axb6 33. a4) 31... Rxh2 $16 32. e5 Rh3+ 33. Kc4 (33. Kb2 $16 Ng4 34. c6 Rh2+ 35. Kc3) 33... Rh4+ $2 {[%mdl 8192] This costs Black the game.} (33... Ng4 $1 $14 34. Kd4 bxc5+ 35. bxc5 Rh2) 34. Kb5 $18 Ne8 35. cxb6 axb6 36. a3 ({Stronger than} 36. Kxb6 Rxb4+ 37. Kc6 g5 $11) 36... Rh3 $2 (36... Nc7+ 37. Kxb6 Ne6) 37. Kxb6 Rxa3 38. Bd5 Re3 39. b5 (39. Rf7+ $142 Kd8 40. Bc6 Rb3 41. Rd7+ Kc8 42. b5 Nc7 43. Rxc7+ Kd8 44. e6) 39... Kd8 40. Rf7 (40. Rf8 $142 Rxe5 41. Bc6 (41. Kc6 Re1 $16)) 40... Rxe5 {[#]} 41. Bc6 $1 {Threatening mate with Rd7+.} Nf6 {Prevents Rd7+.} 42. Rxg7 Re6 43. Kb7 h5 44. Rc7 h4 45. Rc8+ Ke7 46. Rh8 Kd6 47. Rxh4 Kc5 {[#] Prevents Rc4+.} 48. Rh1 $1 Re7+ 49. Ka6 Rc7 50. Rf1 Rf7 51. Rc1+ Kd6 52. b6 Ng4 53. b7 Rf8 {[#]} 54. Be8 $1 {[%mdl 512]} Rxe8 {KRN-KR} 55. Rc8 Re6 56. b8=Q+ {White mates.} Kd7+ 57. Ka7 {[%csl Gc8][%cal Rb8c7]} Re7 58. Ka8 Ke6 59. Rc6+ Kf5 60. Qf8+ {Weighted Error Value: White=0.28 (precise) /Black=0.73} 1-0

[Event "Svetozar Gligoric Masters 2022"]
[Site "Belgrade"]
[Date "2022.07.19"]
[Round "4.18"]
[White "Stamatiou, Rodolfos"]
[Black "Tisaj, Domen"]
[Result "0-1"]
[ECO "B53"]
[WhiteElo "2189"]
[BlackElo "2355"]
[Annotator "TA"]
[PlyCount "120"]
[EventDate "2022.07.18"]
[EventCountry "SRB"]
[SourceTitle "playchess.com"]
[Source "ChessBase"]
[SourceQuality "1"]
[TimeControl "40/5400+30:900+30"]

{[%evp 9,120,9,15,0,0,-12,4,0,0,-39,9,0,0,0,0,0,0,0,4,-40,-12,-18,-13,-24,-10,-1,-2,-29,-18,-43,-35,-32,-28,-48,-47,-27,-20,-45,-44,-53,-35,-43,-20,-25,-25,-25,-15,-25,-8,-67,-47,-89,-89,-95,-82,-89,-52,-110,-127,-146,-131,-130,-141,-159,-167,-212,-203,-191,-209,-235,-251,-237,-231,-344,-243,-256,-256,-226,-224,-218,-211,-218,-200,-193,-194,-433,-443,-443,-411,-427,-427,-500,-498,-604,-586,-482,-460,-479,-522,-675,-661,-741,-736,-727,-707,-679,-678,-1111,-1070,-1368,-1282,-1015,-979]} 1. e4 c5 2. Nf3 d6 3. d4 cxd4 4. Qxd4 Nc6 5. Qe3 g6 6. c4 {B53: Sicilian: 2...d6: Lines with Qxd4.} Bg7 7. Be2 Nf6 (7... Qb6 {looks sharper.} 8. Qd2 Bg4 9. O-O Rc8) 8. O-O {The position is equal.} O-O 9. h3 Be6 (9... Nd7 $15) 10. Nc3 Qb6 11. Rd1 Nd7 12. Nd5 Qxe3 13. Bxe3 Rfc8 {[#] Against Nc7} 14. Rac1 $146 ({Predecessor:} 14. Rab1 Nc5 15. Ng5 h6 16. b4 Na4 17. b5 Bxd5 18. exd5 Ne5 19. Ne4 Nxc4 20. Bd4 {0-1 (37) Gracia Alvarez,G (2237)-Preotu,R (2473) Chess.com INT 2021}) 14... Nc5 15. Bxc5 dxc5 16. b3 Bh6 17. Rb1 Rab8 18. Ne1 (18. a3 $5 {[%cal Rb3b4]}) 18... Kf8 19. Nc2 b6 20. f4 Rd8 21. g4 Bc8 22. g5 Bg7 23. Kg2 e5 24. Rf1 exf4 25. Rxf4 Be5 {This bishop pair is nice.} 26. Rf2 Kg7 27. Rbf1 Be6 28. Bg4 Rb7 29. Be2 (29. Ne1 $11) 29... Rh8 $15 30. Nce3 Bd4 {White is now going downhill.} 31. Rf3 h6 32. gxh6+ Rxh6 {aiming for ...Rh4.} 33. Ng4 ({White should play} 33. Rg3 $15) 33... Rh4 $17 34. Rg3 {[#]} Rb8 $1 35. Nf4 Bd7 36. Nd5 Rbh8 37. Rgf3 Nd8 38. Rg3 Ne6 {White must now prevent ...Ng5.} 39. Ngf6 Bc6 40. Bg4 Ng5 41. Bf3 (41. Bf5 {keeps fighting.}) 41... Bxf6 {Dancing on a razor blade.} 42. Nxf6 Nxf3 ({And not} 42... Nxe4 43. Nxe4 Bxe4 44. Bxe4 Rxe4 45. Rd3 $17) ({Stronger than} 42... Bxe4 43. Rxg5 Kxf6 44. Rg4 Bxf3+ 45. Rxf3+ Ke7 46. Re3+ Kd7 47. Rd3+ Kc8 48. Re3 $17) ({Don't go for} 42... Rxh3 $2 43. Nd5 Rh2+ 44. Kg1 Nxf3+ 45. Rgxf3 Rh1+ 46. Kf2 $19) 43. Rgxf3 Rxe4 44. Nxe4 Bxe4 45. Kg3 Bxf3 46. Rxf3 $19 {[%mdl 4096] Endgame KR-KR} Rd8 {Inhibits Rd3.} 47. Rf2 $2 (47. Re3) 47... Rd3+ 48. Kg2 f5 49. Rb2 Kf6 {Black is clearly winning.} 50. Re2 Kg5 {And now ...Kh4 would win.} 51. Rf2 Re3 52. Rd2 Kf4 53. Rf2+ Ke4 54. Rd2 g5 55. Kh2 Kf3 {[#] ...Re2+ is the strong threat.} 56. Rd5 Re2+ 57. Kg1 Kf4 58. Rd7 Rxa2 59. Rg7 Ra3 60. Kg2 a5 {Weighted Error Value: White=0.38/Black=0.07 (flawless)} 0-1

[Event "Svetozar Gligoric Masters 2022"]
[Site "Belgrade"]
[Date "2022.07.19"]
[Round "4.20"]
[White "Granovskiy, Alexandr"]
[Black "Spasic, Petar"]
[Result "1-0"]
[ECO "E60"]
[WhiteElo "2177"]
[BlackElo "2336"]
[Annotator "TA"]
[PlyCount "59"]
[EventDate "2022.07.18"]
[EventCountry "SRB"]
[SourceTitle "playchess.com"]
[Source "ChessBase"]
[SourceQuality "1"]
[TimeControl "40/5400+30:900+30"]

{[%evp 9,59,31,30,24,18,-13,-2,-11,-7,0,3,0,0,-18,0,-19,-11,-31,58,48,48,38,66,51,98,117,112,116,164,150,238,208,355,377,358,268,284,243,866,866,915,895,1131,1087,29990,29991,29992,29993,29994,29995,29995,29996]} 1. d4 {[%cal Bd2d4,Bd4d5][%mdl 32]} Nf6 2. c4 g6 3. h4 Bg7 4. Nc3 d6 5. e4 Nc6 6. d5 {E60: King's Indian: Unusual lines and Fianchetto Variation without Nc3.} Ne5 7. Nf3 {[#]} Nxf3+ $146 ({Predecessor:} 7... Bg4 8. Be2 Bxf3 9. gxf3 e6 10. f4 Ned7 11. dxe6 fxe6 12. h5 Qe7 13. h6 Bf8 {1-0 (29) Repka,C (2508)-Ali Marandi,C (2524) Saint Louis 2022}) 8. Qxf3 {The position is equal.} O-O 9. Bg5 Ng4 (9... h6 $5 {[%cal Rh6g5]} 10. Bd2 c6 $11) 10. Qe2 h6 11. Bd2 f5 12. f3 Ne5 13. O-O-O f4 ({Better is} 13... c6 $1 $15) 14. Qf2 c5 15. Be2 h5 16. g3 Bh6 {[#]} (16... fxg3 $14 17. Qxg3 Bd7) 17. Qh2 $1 $36 {[%cal Rg3f4][%mdl 2048] White is really pushing.} fxg3 18. Qxg3 Bg7 (18... Bxd2+ $16 {was necessary.} 19. Kxd2 Bd7) 19. Rdg1 $18 a6 {[#]} (19... Qe8 $16 20. Rg2 Rb8) 20. Nd1 $1 {aiming for f4.} (20. Bf4 Rf6 $14) 20... b5 (20... Qe8 $142 21. f4 Bg4) 21. f4 ({Worse is} 21. cxb5 axb5 22. Bc3 Qe8 $11) ({Stronger than} 21. Bf4 Qe8 $11) 21... Ng4 22. Bxg4 Bxg4 23. Nf2 Bd4 $2 (23... Qc8 24. Nxg4 hxg4) 24. Nxg4 hxg4 25. Qxg4 Rf6 26. h5 {[%cal Bh4h5,Bh5g6,Bg6g7][%mdl 32]} bxc4 {[#]} 27. hxg6 $1 {White mates.} Qb6 (27... Bxb2+ 28. Kxb2) 28. b3 c3 {[#]} 29. g7 $1 cxd2+ 30. Kd1 {Weighted Error Value: White=0.08 (flawless) /Black=0.55} 1-0

[Event "Svetozar Gligoric Masters 2022"]
[Site "Belgrade"]
[Date "2022.07.19"]
[Round "4.21"]
[White "Lu, Miaoyi"]
[Black "Baasansuren, Erdene"]
[Result "0-1"]
[ECO "B95"]
[WhiteElo "2322"]
[BlackElo "2243"]
[Annotator "TA"]
[PlyCount "80"]
[EventDate "2022.07.18"]
[EventCountry "SRB"]
[SourceTitle "playchess.com"]
[Source "ChessBase"]
[SourceQuality "1"]
[TimeControl "40/5400+30:900+30"]

{[%evp 15,80,4,2,3,20,8,32,0,0,0,0,0,0,0,0,0,0,0,0,0,0,0,9,9,10,19,4,-27,-30,-30,-29,-182,-187,-171,-167,-208,-125,-383,-375,-379,-376,-341,-277,-529,-92,-86,-19,-20,-18,-135,-135,-219,-202,-238,-214,-569,-561,-1815,-1566,-1825,-1653,-1840,-1795,-1631,-1616,-1341,-1267]} 1. e4 c5 2. Nf3 d6 3. d4 cxd4 4. Nxd4 Nf6 5. Nc3 a6 6. Bg5 e6 7. Qf3 Be7 8. O-O-O Nbd7 {[%cal Bb8d7,Bd7e5,Be5g4,Bg4e3][%mdl 32]} 9. g4 {B95: Sicilian Najdorf: 6 Bg5 e6, unusual White 7th moves.} h6 10. Bd2 Qb6 {[#]} (10... Qc7 $5 {[%cal Rb7b5]}) 11. Be3 $146 {[%cal Od4e6] aiming for Nxe6! White is slightly better.} ({Predecessor:} 11. Be1 Ne5 12. Qe2 g5 13. h4 Rg8 14. hxg5 hxg5 15. f3 Bd7 16. Bf2 Qc7 17. Qe3 {½-½ (78) Cao,S (2346)-Tran,T (2348) Hanoi 2020}) 11... Ne5 {[%csl LRf3,LRg4]} 12. Qg3 {[%cal Od4e6]} Nexg4 13. Nxe6 $1 Nxe3 14. Nxg7+ Kf8 15. fxe3 {Threatens to win with Rg1.} Rg8 {[%cal Bh8g8,Bg8g7,Bg7g4,Bg4e4][%mdl 32]} 16. Rg1 {Black must now prevent Nd5.} Bg4 17. h3 $1 Rxg7 18. hxg4 Rxg4 19. Qf2 Nxe4 20. Nxe4 Rxe4 21. Rd4 Bh4 22. Rg8+ {[%mdl 64] Decoy} Kxg8 23. Qg1+ (23. Qg2+ $11 {and White has nothing to worry.} Bg5 24. Qxe4) 23... Bg5 $1 $19 24. Rxe4 {[#]} d5 $1 $36 {[%mdl 2048] Black is in control.} 25. Rg4 Kf8 26. Rg3 {[%mdl 8192]} (26. Kb1 $17) 26... d4 {[%cal Rg5e3]} 27. Kb1 dxe3 28. Bc4 Rd8 {Strongly threatening ...Rd2.} 29. a3 $2 (29. Bd3) 29... Bf6 $2 (29... Rd2 $19 {has better winning chances.} 30. Rf3 Qd4) 30. Bb3 $17 Qd4 (30... Rd7 $17 {And now ...Bg5 would win.} 31. Qxe3 Qxe3 32. Rxe3 h5) 31. c3 $1 $11 Qb6 32. Ka2 (32. Rg8+ $1 $11 Ke7 33. Rxd8 Kxd8 34. Qg8+ Kc7 35. Qxf7+ Kb8 36. Kc2) 32... Bg5 $17 33. Qf1 (33. Rf3 $17 f6 34. Qb1) 33... Rd7 $19 34. Rf3 {[%cal Rf3f7] [#]} Qg6 ({But not} 34... Qc7 $2 35. Rf5) 35. Qh3 $2 (35. Qe2 {is a better chance.}) 35... Re7 {Hoping for ...e2. Black is clearly winning.} 36. Qf1 e2 37. Qe1 {[#]} Bh4 $1 {[%mdl 512]} 38. Qxh4 (38. Bxf7 Qe4) 38... e1=Q {[%csl Ge1][%cal Rg6b1] Active counter play!} 39. Rxf7+ Qxf7 ({Worse is} 39... Rxf7 40. Qxe1 Re7 41. Qf2+ Ke8 42. Bd5 $15) 40. Qxh6+ Qg7 {Weighted Error Value: White=0.61/Black=0.27 (precise)} 0-1

[Event "Svetozar Gligoric Masters 2022"]
[Site "Belgrade"]
[Date "2022.07.19"]
[Round "4.22"]
[White "Teo, Hong Ming"]
[Black "Yordanov, Lachezar"]
[Result "0-1"]
[ECO "E51"]
[WhiteElo "1898"]
[BlackElo "2316"]
[Annotator "TA"]
[PlyCount "66"]
[EventDate "2022.07.18"]
[EventCountry "SRB"]
[SourceTitle "playchess.com"]
[Source "ChessBase"]
[SourceQuality "1"]
[TimeControl "40/5400+30:900+30"]

{[%evp 13,66,0,0,0,0,0,37,8,12,8,14,8,11,7,13,0,0,0,1,0,3,0,12,8,15,-60,-68,-105,-109,-93,-114,-435,-435,-424,-432,-436,-429,-392,-101,-94,-94,-87,-88,-163,-162,-178,-96,-116,-110,-108,-109,-583,-570,-697,-497]} 1. d4 Nf6 2. c4 e6 3. Nf3 d5 4. Nc3 Bb4 5. e3 O-O 6. Bd2 b6 7. cxd5 exd5 8. Rc1 {E51: Nimzo-Indian: Rubinstein: 4...0-0 5 Nf3 d5.} Bb7 9. Bd3 Re8 10. Nb5 {[#] White is slightly better.} Bxd2+ $146 ({Predecessor:} 10... Na6 11. O-O Bf8 12. Ne5 c5 13. Bb1 Nc7 14. Nc3 Ne6 15. Nf3 Rc8 16. Bf5 g6 {1-0 (55) Andreikin,D (2729)-Sadhwani,R (2619) Chess.com INT 2022}) 11. Qxd2 c6 12. Nc3 Nbd7 13. O-O Qe7 14. a3 c5 15. dxc5 bxc5 16. Rfe1 Nf8 17. Na4 Ne6 18. b4 c4 19. Bb1 ({Better is} 19. Bc2 $11) 19... a5 $1 $15 {[#] Threatens to win with ...axb4.} 20. Nb2 axb4 21. axb4 Ra3 22. e4 $2 {[%mdl 8192]} (22. Nd1 $17 {is more resistant.}) 22... Nxe4 $19 23. Bxe4 dxe4 24. Nxc4 Rd3 ({Worse is} 24... exf3 25. Nxa3 fxg2 26. Nc2 $15) 25. Qc2 Qxb4 $2 ({Not} 25... exf3 26. Qxd3 fxg2 27. Na5 $16) (25... Rxf3 $19 26. gxf3 Nf4) 26. Rb1 {[#]} Qe7 {Black is more active.} 27. Nfe5 Rdd8 28. Na5 (28. Qb2 $17 Ba8 29. Red1) 28... Nd4 {[%csl LRc2,LRe5]} 29. Qc4 Ba8 (29... Qxe5 $19 30. Nxb7 Rd5) 30. Nec6 Nxc6 31. Nxc6 Qc7 32. Rec1 $2 {[%mdl 8192]} (32. Rbc1 $17 {was the crucial defense.} Rc8 33. Ne5) 32... Bxc6 33. Rf1 Rc8 {Weighted Error Value: White=0.73/Black=0.24 (precise)} 0-1

[Event "Svetozar Gligoric Masters 2022"]
[Site "Belgrade"]
[Date "2022.07.20"]
[Round "5.1"]
[White "Rohith Krishna S"]
[Black "Predke, Alexandr"]
[Result "0-1"]
[ECO "D35"]
[WhiteElo "2326"]
[BlackElo "2688"]
[Annotator "TA"]
[PlyCount "102"]
[EventDate "2022.07.18"]
[EventCountry "SRB"]
[SourceTitle "playchess.com"]
[Source "ChessBase"]
[SourceQuality "1"]
[TimeControl "40/5400+30:900+30"]

{[%evp 17,102,6,12,12,12,12,10,20,35,0,9,0,20,10,22,20,30,-7,0,0,0,0,21,0,19,0,25,30,29,27,24,30,27,27,52,59,68,8,17,21,15,14,0,8,38,29,31,12,33,23,25,0,0,16,22,20,18,-139,-122,-299,-319,-369,-368,-353,-365,-345,-358,-398,-393,-378,-379,-444,-444,-806,-776,-1408,-972,-29980,-29981,-29982,-29981,-29989,-29990,-29990,-29987,-29987,-29986]} 1. d4 Nf6 2. c4 e6 3. Nc3 d5 4. cxd5 exd5 5. Bg5 c6 6. e3 h6 7. Bh4 Be7 8. Bd3 O-O 9. Nf3 Ne4 {Hoping for ...Nxc3.} 10. Bxe7 {D35: Queen's Gambit Declined: Exchange Variation.} Qxe7 11. Qc2 {[%cal Rc3e4]} Nd6 12. O-O {The position is equal.} Be6 13. b4 Nd7 {[#]} 14. Nd2 $146 ({Predecessor:} 14. Na4 a5 15. a3 Ra7 16. Ra2 Rfa8 17. Rfa1 b5 18. Nc5 Nc4 19. h3 Nxc5 20. bxc5 Qf6 21. Nd2 Rb8 22. Rb1 Rab7 23. Bh7+ Kf8 24. Bd3 g6 25. Rd1 {½-½ (25) Bendana Aragon,J (2325)-Cuevas Araya,W (2227) ICCF email 2012}) 14... Rac8 15. Ne2 g5 16. Rfe1 f5 17. f3 Kh8 18. Nb3 b6 19. Rac1 Nc4 20. Qc3 {[%cal Rd3c4]} Nf6 21. Ng3 Qd7 22. Nd2 {[%cal Rd2c4]} Nd6 23. Ba6 Rc7 24. a4 f4 25. Ne2 Nh5 26. b5 $1 {[%cal Rb5c6]} fxe3 27. Qxe3 ({White should play} 27. Nf1 $14) 27... Ng7 $11 28. bxc6 Rxc6 29. Nc3 Bg8 30. Nf1 {[%cal Bd2f1,Bf1g3,Bg3e2][%mdl 32]} ({Wrong is} 30. Qe5 $2 Rxc3 31. Rxc3 Re8 $19) 30... Ndf5 (30... Ne6 {feels hotter.} 31. Ng3 Nf4 32. Qe5+ Qg7) 31. Qd2 {Bb5 is the strong threat.} Re6 32. Nb5 Rxe1 33. Qxe1 Re8 34. Qd2 Ne6 35. Ng3 Nh4 {aiming for ...Nf4.} 36. Ne2 {Inhibits Nf4.} Qg7 37. Rc3 $2 {[#]} (37. Bc8 $11) 37... Nf4 $1 $36 {[%mdl 2048] Black is on the roll.} 38. Nd6 $2 {This costs White the game.} (38. Nc7 $17 {might work better.} Re7 39. g3 (39. Nxf4 $2 gxf4 40. Nxd5 Bxd5 $19)) 38... Re6 $19 39. g3 Rxd6 40. Nxf4 gxf4 41. Qxf4 {[#]} Nf5 {[%cal Bh4f5,Bf5d6,Bd6c4][%mdl 544]} 42. Rd3 (42. Qe5 Qf6) 42... Rf6 {[%cal Of5g3] White must now prevent ...Nxg3!} 43. Kf2 Nd6 44. Qe5 Nc4 45. Qe8 (45. Bxc4 $142 dxc4 46. Rc3) 45... Re6 46. Qd8 Qg6 47. Rc3 Qb1 {Black mates.} 48. Bxc4 Qb2+ 49. Kg1 dxc4 {[%cal Re6e1]} 50. Re3 Qc1+ 51. Kg2 Qxe3 {Weighted Error Value: White=0.50/Black=0.05 (flawless)} 0-1

[Event "Svetozar Gligoric Masters 2022"]
[Site "Belgrade"]
[Date "2022.07.20"]
[Round "5.2"]
[White "Koustav Chatterjee"]
[Black "Pranav Vijay"]
[Result "1-0"]
[ECO "A13"]
[WhiteElo "2485"]
[BlackElo "2265"]
[Annotator "TA"]
[PlyCount "65"]
[EventDate "2022.07.18"]
[EventCountry "SRB"]
[SourceTitle "playchess.com"]
[Source "ChessBase"]
[SourceQuality "1"]
[TimeControl "40/5400+30:900+30"]

{[%evp 11,64,33,36,37,35,28,29,30,35,38,41,43,29,35,52,46,76,70,97,87,89,90,133,126,145,117,231,216,239,242,275,297,279,263,580,577,541,512,487,477,544,453,471,449,425,437,901,901,870,787,1878,1645,29987,1460,29999]} 1. Nf3 Nf6 2. c4 e6 3. g3 a6 4. Bg2 b5 5. b3 Bb7 6. Nc3 b4 7. Na4 {A13: English Opening: 1...e6.} Be7 8. O-O O-O 9. Bb2 {White has an edge.} d6 10. d4 {[%cal Od4d5]} Nbd7 11. d5 exd5 12. Nh4 {[%cal Rc4d5]} c5 13. cxd5 Re8 14. Re1 {Black is on the road to losing.} Bf8 15. e4 {[#]} g6 $146 ({Predecessor:} 15... Qc7 16. Rc1 Rad8 17. Ba1 a5 18. Nb2 Ne5 19. f4 Ng6 20. Nxg6 hxg6 21. Nc4 Ba6 {1-0 (44) Erdos,V (2658)-Zhigalko,S (2694) Warsaw 2013}) 16. f4 Nh5 {[%cal Oh5f4]} 17. Qd2 Bh6 {[%cal Oh6f4]} 18. Qf2 {White is more active.} f6 (18... Bg7 $16) 19. Rad1 Ng7 20. Nf3 a5 21. e5 fxe5 22. fxe5 Nb6 $2 (22... dxe5 {is a better chance.} 23. Nxe5 Rf8) 23. Nxb6 $18 Qxb6 24. g4 Bf4 25. e6 {[%cal Of3g5]} Qc7 26. Re4 Nxe6 27. Rxe6 Rxe6 28. dxe6 {[%cal Of3e5] aiming for Ne5!} d5 {[#]} (28... Rf8 $142 29. Qe2 Qe7) 29. Be5 $1 {[%mdl 512]} Bxe5 30. Nxe5 Rf8 31. Nf7 {Threatens to win with Rf1.} d4 32. Qf6 (32. Rf1 $142 Qe7 33. Bxb7 a4 {[#]} 34. Qf4 $1 g5 35. Qe5 $1 Rxf7 36. exf7+ Qxf7 37. Bd5 Qxd5 38. Qe8+ Kg7 39. Qf8+ Kg6 40. Qf6#) 32... Bxg2 33. Qh8# {Weighted Error Value: White=0.09 (flawless) /Black=0.92} 1-0

[Event "Svetozar Gligoric Masters 2022"]
[Site "Belgrade"]
[Date "2022.07.20"]
[Round "5.3"]
[White "Maksimovic, Bojan"]
[Black "Radovanovic, Nikola"]
[Result "1/2-1/2"]
[ECO "E08"]
[WhiteElo "2465"]
[BlackElo "2422"]
[Annotator "TA"]
[PlyCount "121"]
[EventDate "2022.07.18"]
[EventCountry "SRB"]
[SourceTitle "playchess.com"]
[Source "ChessBase"]
[SourceQuality "1"]
[TimeControl "40/5400+30:900+30"]

{[%evp 18,121,20,26,21,16,18,12,18,18,18,18,18,12,18,10,15,15,20,33,29,23,19,7,31,32,24,22,22,28,21,26,23,21,24,21,36,35,35,35,43,31,43,43,46,37,20,18,55,58,81,81,81,81,81,81,88,88,88,74,88,74,88,31,31,31,31,31,31,31,31,31,31,31,31,24,31,31,31,31,31,31,31,31,31,31,41,31,41,31,31,31,31,31,31,31,31,31,31,0,31,0,0,0,0,0]} 1. d4 Nf6 2. c4 e6 3. Nf3 d5 4. g3 Bb4+ 5. Bd2 Be7 6. Bg2 O-O 7. O-O Nbd7 8. Qc2 Ne4 9. Bf4 c6 10. Nc3 g5 $1 {The main line 10...g5 scores better than 10...f5. E08: Closed Catalan: Main Line: 7 Qc2.} 11. Be3 Nd6 12. b3 Nf5 13. cxd5 Nxe3 14. fxe3 {[#] Black must now prevent dxe6.} exd5 {[#]} 15. e4 $146 ({Predecessor:} 15. Bh3 Bb4 16. Nd1 Nb6 17. Bf5 Bxf5 18. Qxf5 f6 19. Nf2 Qd7 20. Qd3 Rae8 21. a3 {0-1 (43) Bosiocic,M (2607)-Bindrich,F (2584) Austria 2017}) 15... dxe4 16. Qxe4 f5 17. Qd3 Bf6 18. Rad1 Nb6 19. e4 Bg7 20. Ne5 c5 (20... f4 {with more complications.} 21. gxf4 gxf4 22. Ne2 Qg5) 21. dxc5 ({Don't blunder} 21. exf5 $2 Qxd4+ 22. Qxd4 cxd4 $19) 21... Qxd3 22. Rxd3 Bxe5 23. cxb6 axb6 24. exf5 Bxf5 25. Rd5 (25. Bd5+ {is interesting.} Kg7 26. Rdf3 Bd4+ 27. Kh1) 25... Bxc3 26. Rdxf5 Bd4+ 27. Kh1 Rxf5 28. Rxf5 $14 {[%mdl 4096] Endgame KRB-KRB} h6 29. Bd5+ Kh8 30. a4 Rc8 31. Kg2 Rc2+ 32. Kh3 Bg1 33. Kg4 (33. Bxb7 h5 34. g4 h4 $15) 33... Rxh2 34. Rf7 ({Much worse is} 34. Bxb7 Kg7 $11) 34... Rf2 35. Rxb7 {White is more active.} Rf6 36. Kh5 Bf2 37. g4 Bc5 38. Bc4 Bb4 39. Ra7 Bf8 40. a5 ({Better is} 40. Rc7 $16) 40... bxa5 41. Rxa5 Rb6 42. Ra7 Bc5 43. Rc7 Ba3 44. Bd5 Bd6 45. Rc8+ Kh7 46. Rd8 Ba3 47. Rd7+ Kh8 48. Bf7 Bf8 49. Ra7 Kg7 50. Bg6+ Kh8 51. Bc2 Bc5 52. Rc7 Ba3 53. Be4 Kg8 54. Bd5+ Kh8 55. Rc8+ Kg7 56. Rg8+ Kh7 57. Ra8 Bc5 58. Rc8 Ba3 59. Bc6 Bd6 {Against Rc7+} 60. b4 Kg7 61. b5 {Weighted Error Value: White=0.04 (flawless) /Black=0.05 (flawless)} 1/2-1/2